fUSD/lending_fUSD_20251006
["ID","MTS","AMOUNT","RATE_DAILY","PERIOD"]
[389642333,1759764645708,-151.0,0.000159,2]
[389642334,1759764645717,-151.0,0.000159,2]
[389642335,1759764645727,-151.0,0.000159,2]
[389642336,1759764645737,-151.0,0.000159,2]
[389642337,1759764645746,-151.0,0.000159,2]
[389642338,1759764645756,-423.86595348,0.000159,2]
[389642339,1759764645766,-2200.0,0.000159,5]
[389642340,1759764645775,-312.0,0.00015917,2]
[389642341,1759764645785,-289.91451272,0.00015918,2]
[389642342,1759764645794,-289.91451272,0.00015973,2]
[389642343,1759764645804,-151.0,0.00015993,2]
[389642344,1759764645814,-151.0,0.00015993,2]
[389642345,1759764645824,-151.0,0.00015993,2]
[389642346,1759764645833,-1000.0,0.00016,2]
[389642347,1759764645844,-1000.0,0.00016,2]
[389642348,1759764645854,-1000.0,0.00016,2]
[389642349,1759764645865,-1000.0,0.00016,2]
[389642350,1759764645875,-1000.0,0.00016,2]
[389642351,1759764645886,-282.09012832,0.00016,2]
[389642352,1759764645895,-1000.0,0.00016,2]
[389642353,1759764645906,-1000.0,0.00016,2]
[389642354,1759764645916,-1190.46255498,0.00016,2]
[389642355,1759764645926,-370.68887098,0.00016,3]
[389642356,1759764645935,-1000.0,0.00016,2]
[389642357,1759764645945,-207.48,0.00016017,2]
[389642358,1759764645956,-503.0,0.00016033,2]
[389642359,1759764645970,-4858.63559035,0.00016035,2]
[389642360,1759764645980,-289.91451272,0.00016055,2]
[389642361,1759764645991,-1500.0,0.00016068,2]
[389642362,1759764646000,-1500.0,0.00016068,2]
[389642363,1759764646010,-1500.0,0.00016068,2]
[389642364,1759764646020,-500.0,0.00016068,2]
[389642365,1759764646029,-150.0,0.00016083,2]
[389642366,1759764646039,-613.56,0.00016087,2]
[389642367,1759764646049,-1100.79824239,0.00016109,2]
[389642368,1759764646059,-289.91451272,0.0001611,2]
[389642369,1759764646069,-688.15,0.00016124,2]
[389642370,1759764646079,-152.0,0.00016147,3]
[389642371,1759764646090,-150.0,0.00016163,2]
[389642372,1759764646101,-8125.20646719,0.00016164,2]
[389642373,1759764646111,-500.0,0.00016164,2]
[389642374,1759764646120,-503.0,0.00016164,2]
[389642376,1759764646131,-289.91451272,0.00016164,2]
[389642377,1759764646140,-1000.0,0.00016165,2]
[389642378,1759764646150,-312.0,0.00016167,2]
[389642379,1759764646160,-150.0,0.00016233,2]
[389642381,1759764646170,-151.0,0.00016238,2]
[389642383,1759764646180,-314.661343,0.00016238,2]
[389642385,1759764646190,-151.0,0.00016238,2]
[389642387,1759764646201,-314.661343,0.00016238,2]
[389642388,1759764646211,-151.0,0.00016238,2]
[389642389,1759764646222,-314.661343,0.00016238,2]
[389642390,1759764646232,-314.661343,0.00016238,2]
[389642391,1759764646242,-151.0,0.00016238,2]
[389642392,1759764646254,-151.0,0.00016238,2]
[389642393,1759764646264,-151.0,0.00016238,2]
[389642394,1759764646274,-151.0,0.00016238,2]
[389642395,1759764646286,-151.0,0.00016238,2]
[389642396,1759764646296,-151.0,0.00016238,2]
[389642397,1759764646306,-2928.66640791,0.00016238,2]
[389642398,1759764646316,-289.91451272,0.00016247,2]
[389642399,1759764646328,-3092.55667865,0.0001627,2]
[389642400,1759764646338,-150.0,0.0001627,2]
[389642401,1759764646348,-2115.40701482,0.0001627,2]
[389642402,1759764646358,-244.308741,0.00016272,2]
[389642403,1759764646368,-244.308741,0.00016272,2]
[389642404,1759764646379,-244.308741,0.00016272,2]
[389642405,1759764646389,-244.308741,0.00016272,2]
[389642406,1759764646399,-212.14118909,0.00016272,2]
[389642407,1759764646408,-265.17648639,0.00016272,2]
[389642408,1759764646419,-318.21178366,0.00016272,2]
[389642409,1759764646432,-1049.67495209,0.00016277,2]
[389642410,1759764646442,-7711.84260204,0.00016278,2]
[389642411,1759764646454,-678.44707909,0.00016281,2]
[389642412,1759764646464,-815.0,0.00016287,2]
[389642413,1759764646474,-1181.0,0.00016287,2]
[389642414,1759764646484,-2543.0,0.00016287,2]
[389642415,1759764646494,-788.0,0.00016287,2]
[389642416,1759764646505,-3401.0,0.00016287,2]
[389642417,1759764646514,-1265.0,0.00016287,2]
[389642418,1759764646525,-6239.0,0.00016287,2]
[389642419,1759764646534,-151.0,0.00016287,2]
[389642420,1759764646544,-151.0,0.00016287,2]
[389642421,1759764646554,-151.0,0.00016287,2]
[389642422,1759764646564,-151.0,0.00016287,2]
[389642423,1759764646574,-292.344603,0.00016287,2]
[389642424,1759764646584,-314.926342,0.00016287,2]
[389642425,1759764646595,-314.926342,0.00016287,2]
[389642426,1759764646605,-314.926342,0.00016287,2]
[389642427,1759764646615,-314.926333,0.00016287,2]
[389642428,1759764646626,-230.238772,0.00016287,2]
[389642429,1759764646636,-230.238772,0.00016287,2]
[389642430,1759764646647,-230.238772,0.00016287,2]
[389642431,1759764646658,-230.238779,0.00016287,2]
[389642432,1759764646669,-151.0,0.00016287,2]
[389642433,1759764646679,-151.0,0.00016287,2]
[389642434,1759764646690,-151.0,0.00016287,2]
[389642435,1759764646704,-151.0,0.00016287,2]
[389642436,1759764646715,-151.0,0.00016287,2]
[389642437,1759764646725,-162.401562,0.00016287,2]
[389642438,1759764646735,-200.137194,0.00016287,2]
[389642439,1759764646746,-200.137194,0.00016287,2]
[389642440,1759764646757,-200.137194,0.00016287,2]
[389642441,1759764646768,-200.137203,0.00016287,2]
[389642442,1759764646779,-151.0,0.00016287,2]
[389642443,1759764646790,-261.39026,0.00016287,2]
[389642444,1759764646802,-261.39026,0.00016287,2]
[389642445,1759764646813,-261.39026,0.00016287,2]
[389642446,1759764646823,-257.45449,0.00016287,2]
[389642447,1759764646834,-261.390261,0.00016287,2]
[389642448,1759764646844,-257.45449,0.00016287,2]
[389642449,1759764646854,-257.45449,0.00016287,2]
[389642450,1759764646864,-257.454482,0.00016287,2]
[389642451,1759764646874,-2115.40701482,0.00016296,2]
[389642452,1759764646888,-587.0,0.00016296,2]
[389642453,1759764646899,-300.0,0.00016301,2]
[389642454,1759764646910,-289.91451272,0.00016301,2]
[389642455,1759764646920,-564.24501153,0.00016306,2]
[389642456,1759764646930,-200.0,0.00016307,2]
[389642457,1759764646939,-312.0,0.00016309,2]
[389642458,1759764646953,-1049.67495209,0.00016312,2]
[389642459,1759764646963,-564.24501153,0.00016313,2]
[389642460,1759764646973,-1049.67495209,0.00016316,2]
[389642461,1759764646983,-564.24501153,0.00016317,2]
[389642462,1759764646993,-3092.55667865,0.00016323,2]
[389642463,1759764647004,-150.0,0.00016324,2]
[389642464,1759764647014,-678.44707909,0.00016326,2]
[389642465,1759764647024,-7711.84260204,0.00016327,2]
[389642466,1759764647034,-152.0,0.0001633,4]
[389642467,1759764647044,-1566.71315669,0.00016336,2]
[389642468,1759764647054,-151.0,0.00016336,2]
[389642469,1759764647064,-151.0,0.00016336,2]
[389642470,1759764647075,-151.0,0.00016336,2]
[389642471,1759764647086,-151.0,0.00016336,2]
[389642472,1759764647096,-4858.63559035,0.00016338,2]
[389642473,1759764647105,-399.88064702,0.00016338,2]
[389642474,1759764647116,-3092.55667865,0.00016338,2]
[389642475,1759764647127,-1000.0,0.00016343,2]
[389642476,1759764647137,-564.24501153,0.00016344,2]
[389642477,1759764647147,-2115.40701482,0.00016344,2]
[389642478,1759764647157,-564.24501153,0.00016344,2]
[389642479,1759764647167,-503.0,0.00016347,2]
[389642480,1759764647177,-2115.40701482,0.00016347,2]
[389642481,1759764647187,-7711.84260204,0.00016351,2]
[389642482,1759764647201,-678.44707909,0.00016351,2]
[389642483,1759764647212,-3092.55667865,0.00016355,2]
[389642484,1759764647222,-678.44707909,0.00016355,2]
[389642485,1759764647232,-1000.0,0.00016356,2]
[389642486,1759764647246,-289.91451272,0.00016356,2]
[389642487,1759764647256,-678.44707909,0.00016359,2]
[389642488,1759764647265,-613.61,0.00016361,2]
[389642489,1759764647275,-7711.84260204,0.00016364,2]
[389642490,1759764647285,-2115.40701482,0.00016368,2]
[389642491,1759764647296,-1000.0,0.00016373,2]
[389642492,1759764647306,-1000.0,0.00016379,2]
[389642493,1759764647315,-151.0,0.00016379,2]
[389642494,1759764647325,-1868.65,0.0001638,2]
[389642495,1759764647334,-123940.0,0.0001638,2]
[389642496,1759764647344,-151.0,0.0001638,2]
[389642497,1759764647353,-151.0,0.0001638,2]
[389642498,1759764647363,-151.0,0.0001638,2]
[389642499,1759764647374,-225.916939,0.0001638,2]
[389642500,1759764647383,-151.0,0.0001638,2]
[389642501,1759764647393,-244.308741,0.0001638,2]
[389642502,1759764647403,-244.308741,0.0001638,2]
[389642503,1759764647412,-244.308741,0.0001638,2]
[389642504,1759764647422,-244.308741,0.0001638,2]
[389642505,1759764647431,-151.0,0.0001638,2]
[389642506,1759764647441,-314.661343,0.0001638,2]
[389642507,1759764647454,-151.0,0.0001638,2]
[389642508,1759764647464,-314.661343,0.0001638,2]
[389642509,1759764647474,-151.0,0.0001638,2]
[389642510,1759764647485,-314.661343,0.0001638,2]
[389642511,1759764647494,-314.661352,0.0001638,2]
[389642512,1759764647505,-151.0,0.0001638,2]
[389642513,1759764647515,-151.0,0.0001638,2]
[389642514,1759764647524,-151.0,0.0001638,2]
[389642515,1759764647534,-151.0,0.0001638,2]
[389642516,1759764647548,-151.0,0.0001638,2]
[389642517,1759764647558,-177.332975,0.0001638,2]
[389642518,1759764647568,-1049.67495209,0.00016386,2]
[389642519,1759764647578,-1049.67495209,0.00016388,2]
[389642520,1759764647591,-7711.84260204,0.00016396,2]
[389642521,1759764647602,-3092.55667865,0.00016398,2]
[389642522,1759764647612,-850.0,0.000164,6]
[389642523,1759764647622,-1000.0,0.000164,5]
[389642524,1759764647632,-150.0,0.000164,120]
[389642525,1759764647642,-150.67897445,0.00016411,2]
[389642526,1759764647651,-150.0,0.00016411,2]
[389642527,1759764647660,-150.0,0.00016411,2]
[389642528,1759764647670,-2118.0,0.00016414,2]
[389642529,1759764647680,-270.21447354,0.00016422,2]
[389642530,1759764647690,-6793.817937,0.0001643,5]
[389642531,1759764647703,-254.477637,0.0001643,5]
[389642532,1759764647713,-180.867033,0.0001643,5]
[389642533,1759764647723,-198.656368,0.0001643,5]
[389642534,1759764647732,-5056.20673,0.0001643,5]
[389642535,1759764647742,-3216.074565,0.0001643,5]
[389642536,1759764647751,-301.67,0.00016431,2]
[389642537,1759764647761,-200.0,0.00016431,2]
[389642538,1759764647770,-45419.66511722,0.00016435,2]
[389642539,1759764647780,-300.0,0.00016437,2]
[389642540,1759764647789,-40209.0,0.00016437,2]
[389642541,1759764647799,-6793.817937,0.00016438,2]
[389642542,1759764647808,-254.477637,0.00016438,2]
[389642543,1759764647817,-180.867033,0.00016438,2]
[389642544,1759764647827,-198.656368,0.00016438,2]
[389642545,1759764647836,-5056.20673,0.00016438,2]
[389642546,1759764647845,-3216.074565,0.00016438,2]
[389642547,1759764647854,-500.0,0.00016438,2]
[389642548,1759764647864,-500.0,0.00016438,2]
[389642549,1759764647873,-500.0,0.00016438,2]
[389642550,1759764647883,-500.0,0.00016438,2]
[389642551,1759764647892,-500.0,0.00016438,2]
[389642552,1759764647901,-500.0,0.00016438,2]
[389642553,1759764647910,-500.0,0.00016438,2]
[389642554,1759764647920,-500.0,0.00016438,2]
[389642555,1759764647929,-500.0,0.00016438,2]
[389642556,1759764647938,-500.0,0.00016438,2]
[389642557,1759764647948,-500.0,0.00016438,2]
[389642558,1759764647959,-500.0,0.00016438,2]
[389642559,1759764647968,-443.76420685,0.00016438,2]
[389642560,1759764647978,-502.99409054,0.00016438,2]
[389642561,1759764647987,-500.0,0.00016438,2]
[389642562,1759764647997,-500.0,0.00016438,2]
[389642563,1759764648007,-500.0,0.00016438,2]
[389642564,1759764648017,-500.0,0.00016438,2]
[389642565,1759764648026,-457.83215473,0.00016438,2]
[389642566,1759764648036,-500.0,0.00016438,2]
[389642567,1759764648045,-500.0,0.00016438,2]
[389642568,1759764648055,-500.0,0.00016438,2]
[389642569,1759764648064,-627.15238289,0.00016438,2]
[389642570,1759764648074,-500.0,0.00016438,2]
[389642571,1759764648083,-500.0,0.00016438,2]
[389642572,1759764648093,-500.0,0.00016438,2]
[389642573,1759764648103,-501.85920394,0.00016438,2]
[389642574,1759764648113,-500.0,0.00016438,2]
[389642575,1759764648125,-500.0,0.00016438,2]
[389642576,1759764648138,-500.0,0.00016438,2]
[389642577,1759764648152,-500.0,0.00016438,2]
[389642578,1759764648164,-207.53927591,0.00016438,2]
[389642579,1759764648176,-500.0,0.00016438,2]
[389642580,1759764648188,-500.0,0.00016438,2]
[389642581,1759764648201,-500.0,0.00016438,2]
[389642582,1759764648212,-500.0,0.00016438,2]
[389642583,1759764648224,-353.92,0.00016438,2]
[389642584,1759764648237,-634.34,0.00016438,2]
[389642585,1759764648251,-500.0,0.00016438,2]
[389642586,1759764648262,-507.12906348,0.00016438,2]
[389642587,1759764648274,-500.0,0.00016438,2]
[389642588,1759764648287,-500.8343624,0.00016438,2]
[389642589,1759764648299,-210.114619,0.00016438,2]
[389642590,1759764648311,-642.27504366,0.00016438,2]
[389642591,1759764648326,-502.549226,0.00016438,2]
[389642592,1759764648338,-500.0,0.00016438,2]
[389642593,1759764648349,-212.13031025,0.00016438,2]
[389642594,1759764648360,-503.66597887,0.00016438,2]
[389642595,1759764648371,-500.0,0.00016438,2]
[389642596,1759764648382,-500.0,0.00016438,2]
[389642597,1759764648392,-151.0,0.00016438,2]
[389642598,1759764648402,-500.0,0.00016438,2]
[389642599,1759764648414,-500.0,0.00016438,2]
[389642600,1759764648426,-500.0,0.00016438,2]
[389642601,1759764648437,-500.0,0.00016438,2]
[389642602,1759764648451,-500.0,0.00016438,2]
[389642603,1759764648464,-151.0,0.00016438,2]
[389642604,1759764648475,-500.0,0.00016438,2]
[389642605,1759764648488,-500.0,0.00016438,2]
[389642606,1759764648500,-501.73454841,0.00016438,2]
[389642607,1759764648511,-197.725181,0.00016438,2]
[389642608,1759764648524,-500.0,0.00016438,2]
[389642609,1759764648535,-558.55949958,0.00016438,2]
[389642610,1759764648547,-500.0,0.00016438,2]
[389642611,1759764648558,-583.79015474,0.00016438,2]
[389642612,1759764648569,-500.0,0.00016438,2]
[389642613,1759764648580,-500.0,0.00016438,2]
[389642614,1759764648593,-500.0,0.00016438,2]
[389642615,1759764648604,-509.43823672,0.00016438,2]
[389642616,1759764648616,-500.0,0.00016438,2]
[389642617,1759764648627,-501.0314483,0.00016438,2]
[389642618,1759764648638,-500.0,0.00016438,2]
[389642619,1759764648650,-500.0,0.00016438,2]
[389642620,1759764648662,-427.47673441,0.00016438,2]
[389642621,1759764648673,-2026.15,0.00016438,2]
[389642622,1759764648684,-2026.15,0.00016438,2]
[389642623,1759764648696,-2026.15,0.00016438,2]
[389642624,1759764648708,-2026.15,0.00016438,2]
[389642625,1759764648721,-2026.15,0.00016438,2]
[389642626,1759764648737,-2026.15,0.00016438,2]
[389642627,1759764648748,-2026.15,0.00016438,2]
[389642628,1759764648760,-2026.15,0.00016438,2]
[389642629,1759764648772,-2026.15,0.00016438,2]
[389642630,1759764648784,-2026.15,0.00016438,2]
[389642631,1759764648795,-2026.15,0.00016438,2]
[389642632,1759764648806,-2026.15,0.00016438,2]
[389642633,1759764648817,-2026.15,0.00016438,2]
[389642634,1759764648827,-2026.15,0.00016438,2]
[389642635,1759764648838,-2026.15,0.00016438,2]
[389642636,1759764648848,-2026.15,0.00016438,2]
[389642637,1759764648860,-2026.15,0.00016438,2]
[389642638,1759764648872,-2026.15,0.00016438,2]
[389642639,1759764648884,-2026.15,0.00016438,2]
[389642640,1759764648894,-2026.15,0.00016438,2]
[389642641,1759764648904,-2026.15,0.00016438,2]
[389642642,1759764648914,-2026.15,0.00016438,2]
[389642643,1759764648924,-2026.15,0.00016438,2]
[389642644,1759764648934,-2026.23,0.00016438,2]
[389642645,1759764648945,-500.0,0.00016438,2]
[389642646,1759764648957,-500.0,0.00016438,2]
[389642647,1759764648969,-500.0,0.00016438,2]
[389642648,1759764648982,-500.0,0.00016438,2]
[389642649,1759764648994,-619.79,0.00016438,2]
[389642650,1759764649004,-500.0,0.00016438,2]
[389642651,1759764649014,-500.0,0.00016438,2]
[389642652,1759764649025,-500.0,0.00016438,2]
[389642653,1759764649035,-500.0,0.00016438,2]
[389642654,1759764649045,-500.0,0.00016438,2]
[389642655,1759764649055,-500.0,0.00016438,2]
[389642656,1759764649066,-500.0,0.00016438,2]
[389642657,1759764649077,-325.67,0.00016438,2]
[389642658,1759764649088,-500.0,0.00016438,2]
[389642659,1759764649098,-500.0,0.00016438,2]
[389642660,1759764649109,-500.0,0.00016438,2]
[389642661,1759764649119,-500.0,0.00016438,2]
[389642662,1759764649131,-500.0,0.00016438,2]
[389642663,1759764649142,-500.0,0.00016438,2]
[389642664,1759764649152,-500.0,0.00016438,2]
[389642665,1759764649163,-500.0,0.00016438,2]
[389642666,1759764649174,-500.0,0.00016438,2]
[389642667,1759764649184,-500.0,0.00016438,2]
[389642668,1759764649194,-586.22392925,0.00016438,2]
[389642669,1759764649207,-244.308741,0.00016438,2]
[389642670,1759764649218,-500.0,0.00016438,2]
[389642671,1759764649229,-500.0,0.00016438,2]
[389642672,1759764649240,-244.308741,0.00016438,2]
[389642673,1759764649255,-500.0,0.00016438,2]
[389642674,1759764649266,-500.0,0.00016438,2]
[389642675,1759764649277,-500.0,0.00016438,2]
[389642676,1759764649288,-500.0,0.00016438,2]
[389642677,1759764649299,-500.0,0.00016438,2]
[389642678,1759764649310,-500.0,0.00016438,2]
[389642679,1759764649320,-500.0,0.00016438,2]
[389642680,1759764649331,-244.308741,0.00016438,2]
[389642681,1759764649342,-500.0,0.00016438,2]
[389642682,1759764649353,-500.0,0.00016438,2]
[389642683,1759764649364,-500.0,0.00016438,2]
[389642684,1759764649375,-500.0,0.00016438,2]
[389642685,1759764649385,-500.0,0.00016438,2]
[389642686,1759764649396,-244.308749,0.00016438,2]
[389642687,1759764649407,-153.087005,0.00016438,2]
[389642688,1759764649417,-500.0,0.00016438,2]
[389642689,1759764649428,-500.0,0.00016438,2]
[389642690,1759764649439,-500.0,0.00016438,2]
[389642691,1759764649450,-500.0,0.00016438,2]
[389642692,1759764649461,-500.0,0.00016438,2]
[389642693,1759764649471,-500.0,0.00016438,2]
[389642694,1759764649482,-500.0,0.00016438,2]
[389642695,1759764649493,-500.0,0.00016438,2]
[389642696,1759764649504,-500.0,0.00016438,2]
[389642697,1759764649515,-500.0,0.00016438,2]
[389642698,1759764649526,-500.0,0.00016438,2]
[389642699,1759764649538,-500.0,0.00016438,2]
[389642700,1759764649549,-500.0,0.00016438,2]
[389642701,1759764649561,-500.0,0.00016438,2]
[389642702,1759764649572,-500.0,0.00016438,2]
[389642703,1759764649583,-500.0,0.00016438,2]
[389642704,1759764649594,-500.0,0.00016438,2]
[389642705,1759764649606,-500.0,0.00016438,2]
[389642706,1759764649617,-500.0,0.00016438,2]
[389642707,1759764649629,-500.0,0.00016438,2]
[389642708,1759764649641,-500.0,0.00016438,2]
[389642709,1759764649652,-500.0,0.00016438,2]
[389642710,1759764649664,-500.0,0.00016438,2]
[389642711,1759764649676,-500.0,0.00016438,2]
[389642712,1759764649687,-500.0,0.00016438,2]
[389642713,1759764649699,-500.0,0.00016438,2]
[389642714,1759764649711,-500.0,0.00016438,2]
[389642715,1759764649722,-500.0,0.00016438,2]
[389642716,1759764649733,-500.0,0.00016438,2]
[389642717,1759764649744,-500.0,0.00016438,2]
[389642718,1759764649755,-500.0,0.00016438,2]
[389642719,1759764649771,-500.0,0.00016438,2]
[389642720,1759764649782,-500.0,0.00016438,2]
[389642721,1759764649793,-500.0,0.00016438,2]
[389642722,1759764649805,-500.0,0.00016438,2]
[389642723,1759764649815,-500.0,0.00016438,2]
[389642724,1759764649827,-372.4,0.00016438,2]
[389642725,1759764649838,-500.0,0.00016438,2]
[389642726,1759764649848,-500.0,0.00016438,2]
[389642727,1759764649859,-279.01535693,0.00016438,2]
[389642728,1759764649870,-516.3915435,0.00016438,2]
[389642729,1759764649881,-500.0,0.00016438,2]
[389642730,1759764649892,-500.0,0.00016438,2]
[389642731,1759764649903,-500.0,0.00016438,2]
[389642732,1759764649914,-500.0,0.00016438,2]
[389642733,1759764649925,-500.0,0.00016438,2]
[389642734,1759764649935,-500.0,0.00016438,2]
[389642735,1759764649945,-500.0,0.00016438,2]
[389642736,1759764649957,-500.0,0.00016438,2]
[389642737,1759764649968,-500.0,0.00016438,2]
[389642738,1759764649979,-500.0,0.00016438,2]
[389642739,1759764649991,-500.0,0.00016438,2]
[389642740,1759764650002,-500.0,0.00016438,2]
[389642741,1759764650015,-500.0,0.00016438,2]
[389642742,1759764650026,-500.0,0.00016438,2]
[389642743,1759764650037,-500.0,0.00016438,2]
[389642744,1759764650048,-500.0,0.00016438,2]
[389642745,1759764650059,-573.80675714,0.00016438,2]
[389642746,1759764650069,-500.0,0.00016438,2]
[389642747,1759764650080,-500.0,0.00016438,2]
[389642748,1759764650091,-500.0,0.00016438,2]
[389642749,1759764650101,-500.0,0.00016438,2]
[389642750,1759764650112,-500.0,0.00016438,2]
[389642751,1759764650123,-500.0,0.00016438,2]
[389642752,1759764650134,-500.0,0.00016438,2]
[389642753,1759764650145,-500.0,0.00016438,2]
[389642754,1759764650156,-500.0,0.00016438,2]
[389642755,1759764650167,-500.0,0.00016438,2]
[389642756,1759764650177,-500.0,0.00016438,2]
[389642757,1759764650188,-500.0,0.00016438,2]
[389642758,1759764650199,-500.0,0.00016438,2]
[389642759,1759764650211,-500.0,0.00016438,2]
[389642760,1759764650222,-500.0,0.00016438,2]
[389642761,1759764650232,-500.0,0.00016438,2]
[389642762,1759764650245,-500.0,0.00016438,2]
[389642763,1759764650256,-500.0,0.00016438,2]
[389642764,1759764650267,-500.0,0.00016438,2]
[389642765,1759764650278,-500.0,0.00016438,2]
[389642766,1759764650290,-500.0,0.00016438,2]
[389642767,1759764650302,-500.0,0.00016438,2]
[389642768,1759764650312,-500.0,0.00016438,2]
[389642769,1759764650325,-513.73,0.00016438,2]
[389642770,1759764650336,-285.8076951,0.00016438,2]
[389642771,1759764650347,-653.57,0.00016438,2]
[389642772,1759764650357,-653.57,0.00016438,2]
[389642773,1759764650367,-653.57,0.00016438,2]
[389642774,1759764650378,-653.57,0.00016438,2]
[389642775,1759764650388,-653.57,0.00016438,2]
[389642776,1759764650398,-653.57,0.00016438,2]
[389642777,1759764650408,-653.57,0.00016438,2]
[389642778,1759764650419,-653.57,0.00016438,2]
[389642779,1759764650430,-653.57,0.00016438,2]
[389642780,1759764650441,-653.57,0.00016438,2]
[389642781,1759764650453,-653.57,0.00016438,2]
[389642782,1759764650463,-653.57,0.00016438,2]
[389642783,1759764650474,-653.57,0.00016438,2]
[389642784,1759764650484,-653.57,0.00016438,2]
[389642785,1759764650495,-653.57,0.00016438,2]
[389642786,1759764650506,-653.57,0.00016438,2]
[389642787,1759764650517,-653.57,0.00016438,2]
[389642788,1759764650527,-653.57,0.00016438,2]
[389642789,1759764650538,-653.57,0.00016438,2]
[389642790,1759764650548,-653.57,0.00016438,2]
[389642791,1759764650558,-217.84772999,0.00016438,2]
[389642792,1759764650569,-922.46,0.00016438,2]
[389642793,1759764650579,-922.46,0.00016438,2]
[389642794,1759764650590,-653.57,0.00016438,2]
[389642795,1759764650600,-922.46,0.00016438,2]
[389642796,1759764650610,-653.57,0.00016438,2]
[389642797,1759764650622,-922.46,0.00016438,2]
[389642798,1759764650632,-653.57,0.00016438,2]
[389642799,1759764650643,-653.62415347,0.00016438,2]
[389642800,1759764650653,-922.46,0.00016438,2]
[389642801,1759764650664,-922.46,0.00016438,2]
[389642802,1759764650675,-922.46,0.00016438,2]
[389642803,1759764650686,-922.46,0.00016438,2]
[389642804,1759764650696,-922.46,0.00016438,2]
[389642805,1759764650707,-922.46,0.00016438,2]
[389642806,1759764650718,-922.46,0.00016438,2]
[389642807,1759764650728,-922.46,0.00016438,2]
[389642808,1759764650739,-922.46,0.00016438,2]
[389642809,1759764650750,-922.46,0.00016438,2]
[389642810,1759764650760,-440.74323941,0.00016438,2]
[389642811,1759764650771,-922.46,0.00016438,2]
[389642812,1759764650782,-500.0,0.00016438,2]
[389642813,1759764650793,-922.46,0.00016438,2]
[389642814,1759764650803,-922.46,0.00016438,2]
[389642815,1759764650814,-922.46,0.00016438,2]
[389642816,1759764650824,-922.46,0.00016438,2]
[389642817,1759764650836,-922.46,0.00016438,2]
[389642818,1759764650846,-922.46,0.00016438,2]
[389642819,1759764650857,-922.46,0.00016438,2]
[389642820,1759764650867,-922.46,0.00016438,2]
[389642821,1759764650877,-922.48,0.00016438,2]
[389642822,1759764650888,-560.61,0.00016438,2]
[389642823,1759764650898,-560.61,0.00016438,2]
[389642824,1759764650908,-560.61,0.00016438,2]
[389642825,1759764650919,-560.61,0.00016438,2]
[389642826,1759764650930,-560.61,0.00016438,2]
[389642827,1759764650941,-560.61,0.00016438,2]
[389642828,1759764650950,-560.61,0.00016438,2]
[389642829,1759764650962,-500.0,0.00016438,2]
[389642830,1759764650973,-560.61,0.00016438,2]
[389642831,1759764650984,-560.61,0.00016438,2]
[389642832,1759764650995,-500.0,0.00016438,2]
[389642833,1759764651005,-560.61,0.00016438,2]
[389642834,1759764651015,-500.0,0.00016438,2]
[389642835,1759764651025,-560.61,0.00016438,2]
[389642836,1759764651036,-500.0,0.00016438,2]
[389642837,1759764651047,-560.61,0.00016438,2]